bitfinex/quotes_SOLUSD_20251030
["timestamp","ask_amount","ask_price","bid_price","bid_amount"]
[1761832699032,20.592,186.46,186.43,19.43380249]
[1761832699347,28.94438335,186.46,186.41,0.14216157]
[1761832699669,28.94438335,186.46,186.35,9.78882769]
[1761832699670,8.35238335,186.43,186.38,0.66]
[1761832700168,0.64,186.46,186.38,0.66]
[1761832700169,8.35238335,186.42,186.38,0.66]
[1761832700370,8.35238335,186.39,186.36,5.36595836]
[1761832700545,20.592,186.42,186.36,6.02595836]
[1761832700740,8.35238335,186.41,186.37,0.14216157]
[1761832700953,20.592,186.42,186.37,0.80216157]
[1761832701471,8.35238335,186.42,186.37,9.15454492]
[1761832701687,8.35238335,186.42,186.37,0.80216157]
[1761832701856,8.35238335,186.41,186.38,0.66]
[1761832702050,20.592,186.44,186.38,0.66]
[1761832702385,8.35238335,186.42,186.38,0.66]
[1761832702689,20.592,186.44,186.39,5.50714205]
[1761832702885,8.35238335,186.43,186.39,0.14216157]
[1761832703093,8.35238335,186.41,186.39,0.14216157]
[1761832703394,20.592,186.42,186.35,8.35238335]
[1761832703395,8.35238335,186.4,186.37,0.14216157]
[1761832703571,8.35238335,186.4,186.37,0.80216157]
[1761832703888,8.35238335,186.44,186.39,0.14216157]
[1761832704261,14.0445881,186.51,186.41,0.14216157]
[1761832704262,6.0016628,186.51,186.41,0.14216157]
[1761832704476,8.35238335,186.46,186.41,0.80216157]
[1761832704780,8.35238335,186.46,186.42,5.3642313]
[1761832705199,20.592,186.47,186.41,0.14216157]
[1761832705200,8.35238335,186.45,186.41,0.14216157]
[1761832705369,8.35238335,186.45,186.41,5.50667578]
[1761832705556,8.35238335,186.46,186.42,0.66]
[1761832705885,8.35238335,186.45,186.42,0.66]
[1761832706276,20.592,186.47,186.42,0.66]
[1761832706494,8.35238335,186.44,186.39,0.80216157]
[1761832706687,8.35238335,186.44,186.42,0.66]
[1761832706856,8.35238335,186.44,186.42,6.02412746]
[1761832707058,20.592,186.47,186.43,0.14216157]
[1761832707287,9.78882769,186.54,186.43,9.15454492]
[1761832707589,9.78882769,186.54,186.43,0.80216157]
[1761832707590,8.35238335,186.48,186.43,0.80216157]
[1761832707808,20.592,186.5,186.43,0.80216157]
[1761832707809,8.35238335,186.49,186.45,0.14216157]
[1761832707967,8.35238335,186.48,186.45,0.14216157]
[1761832708152,8.35238335,186.48,186.46,0.66]
[1761832708489,10.42882769,186.54,186.42,27.12708907]
[1761832708490,8.35238335,186.47,186.43,0.14216157]
[1761832708789,8.35238335,186.46,186.42,19.43470572]
[1761832708964,8.35238335,186.46,186.43,0.14216157]
[1761832709394,8.35238335,186.46,186.43,0.80216157]
[1761832709602,8.35238335,186.45,186.43,0.80216157]
[1761832709808,8.35238335,186.47,186.43,0.80216157]
[1761832709981,8.35238335,186.49,186.43,9.15454492]
[1761832710178,6.20042275,186.56,186.45,8.49454492]
[1761832710399,6.20042275,186.56,186.46,8.35238335]
[1761832710400,8.35238335,186.52,186.46,8.35238335]
[1761832710607,28.94438335,186.52,186.48,0.14216157]
[1761832710977,8.35238335,186.49,186.46,0.14216157]
[1761832711284,20.592,186.52,186.47,0.66]
[1761832711492,8.35238335,186.5,186.48,0.14216157]
[1761832711911,8.35238335,186.51,186.48,0.80216157]
[1761832712073,20.592,186.52,186.48,0.80216157]
[1761832712277,8.35238335,186.51,186.48,0.80216157]
[1761832712483,8.35238335,186.51,186.46,5.36308055]
[1761832712852,8.35238335,186.5,186.46,0.14216157]
[1761832712997,8.35238335,186.5,186.46,0.80216157]
[1761832713315,20.592,186.52,186.46,0.80216157]
[1761832713484,8.35238335,186.51,186.46,0.80216157]
[1761832713686,20.592,186.52,186.48,0.14216157]
[1761832714106,20.592,186.52,186.49,0.66]
[1761832714895,28.94438335,186.52,186.49,6.02220297]
[1761832715077,28.94438335,186.52,186.49,5.36220297]
[1761832715281,8.35238335,186.5,186.46,0.66]
[1761832715482,20.592,186.49,186.46,0.14216157]
[1761832715789,20.592,186.49,186.47,0.14216157]
[1761832716182,8.35238335,186.49,186.46,0.14216157]
[1761832716385,8.35238335,186.49,186.46,0.80216157]
[1761832716588,20.592,186.5,186.46,6.16505659]
[1761832716793,8.35238335,186.47,186.45,5.36333027]
[1761832716987,8.35238335,186.46,186.43,0.14216157]
[1761832717315,21.232,186.5,186.42,5.3641965]
[1761832717487,8.35238335,186.44,186.42,5.3641965]
[1761832717685,8.35238335,186.45,186.42,5.3641965]
[1761832717989,20.592,186.47,186.38,0.66]
[1761832717990,8.35238335,186.43,186.38,0.66]
[1761832718298,8.35238335,186.42,186.39,0.14216157]
[1761832718698,8.35238335,186.42,186.39,6.16716125]
[1761832719018,8.35238335,186.42,186.39,6.02499968]
[1761832719219,20.592,186.44,186.4,0.66]
[1761832719425,13.40411914,186.51,186.41,8.49454492]
[1761832719426,20.592,186.51,186.41,8.49454492]
[1761832719588,8.35238335,186.45,186.41,0.14216157]
[1761832719924,8.35238335,186.45,186.41,0.80216157]
[1761832720296,8.35238335,186.46,186.41,0.80216157]
[1761832720741,8.35238335,186.46,186.43,0.14216157]
[1761832721218,8.35238335,186.46,186.43,0.80216157]
[1761832721401,8.35238335,186.47,186.43,0.80216157]
[1761832721603,21.232,186.51,186.43,0.80216157]
[1761832721796,8.35238335,186.46,186.43,0.80216157]
[1761832722195,8.35238335,186.46,186.43,6.16583166]
[1761832722595,28.94438335,186.49,186.45,0.14216157]
[1761832722802,8.35238335,186.49,186.46,0.66]
[1761832723204,8.35238335,186.52,186.47,0.14216157]
[1761832723423,5.36059833,186.55,186.48,0.66]
[1761832723722,8.35238335,186.54,186.49,0.14216157]
[1761832724026,8.35238335,186.53,186.49,0.14216157]
[1761832724188,20.592,186.52,186.51,5.3616428]
[1761832724390,8.35238335,186.55,186.51,18.76574981]
[1761832724587,20.592,186.52,186.51,18.76574981]
[1761832724820,0.2,186.56,186.51,19.42574981]
[1761832725019,8.35238335,186.54,186.51,5.3616428]
[1761832725221,8.35238335,186.54,186.49,8.49454492]
[1761832725222,8.35238335,186.54,186.49,13.85672604]
[1761832725408,8.35238335,186.54,186.5,0.66]
[1761832725604,28.94438335,186.55,186.5,0.66]
[1761832725920,0.2,186.56,186.5,9.01238335]
[1761832726218,0.2,186.56,186.49,18.90988722]
[1761832726219,0.2,186.56,186.53,8.35238335]
[1761832726431,0.2,186.56,186.54,0.14216157]
[1761832726796,8.55238335,186.56,186.52,5.36135535]
[1761832727108,20.592,186.55,186.52,0.14216157]
[1761832727304,0.2,186.56,186.52,0.80216157]
[1761832727515,29.14438335,186.56,186.52,0.80216157]
[1761832728214,20.792,186.56,186.53,5.36106792]
[1761832728816,20.792,186.56,186.53,6.02106792]
[1761832729098,29.14438335,186.56,186.53,5.36106792]
[1761832729629,29.14438335,186.56,186.43,9.01238335]
[1761832729630,20.592,186.51,186.43,9.01238335]
[1761832729921,20.592,186.44,186.43,0.66]
[1761832730417,20.592,186.44,186.43,6.02394357]
[1761832730996,21.232,186.52,186.43,19.43380249]
[1761832731304,8.35238335,186.45,186.41,6.02435845]
[1761832731508,8.35238335,186.45,186.42,0.14216157]
[1761832731727,8.35238335,186.44,186.42,0.14216157]
[1761832731909,8.35238335,186.45,186.42,0.14216157]
[1761832732112,20.592,186.5,186.43,0.66]
[1761832732320,8.35238335,186.48,186.44,0.14216157]
[1761832732919,0.64,186.52,186.44,0.80216157]
[1761832732920,8.35238335,186.47,186.44,0.80216157]
[1761832733129,20.592,186.49,186.44,0.80216157]
[1761832733304,8.35238335,186.47,186.44,0.80216157]
[1761832733816,8.35238335,186.46,186.43,18.77380249]
[1761832734318,20.592,186.49,186.43,19.43380249]
[1761832734319,8.35238335,186.47,186.43,19.43380249]
[1761832734920,8.35238335,186.47,186.44,0.66]
[1761832735330,8.35238335,186.48,186.44,0.66]
[1761832735632,6.13495005,186.58,186.45,8.49454492]
[1761832735633,20.592,186.51,186.45,8.49454492]
[1761832735802,8.35238335,186.5,186.45,8.49454492]
[1761832736315,20.592,186.48,186.47,0.14216157]
[1761832736825,8.35238335,186.48,186.43,0.14216157]
[1761832737026,8.35238335,186.46,186.43,0.14216157]
[1761832737328,20.592,186.47,186.43,0.80216157]
[1761832737706,28.94438335,186.47,186.43,0.80216157]
[1761832737921,28.94438335,186.47,186.42,8.15454492]
[1761832738121,20.592,186.43,186.3,0.53676865]
[1761832738325,9.78882769,186.37,186.24,16.13206786]
[1761832738534,9.78882769,186.37,186.18,0.53711462]
[1761832738535,9.78882769,186.37,186.25,8.35238335]
[1761832738712,9.78882769,186.37,186.18,0.53711462]
[1761832738713,7.59961672,186.36,186.27,8.35238335]
[1761832738911,20.592,186.33,186.18,21.33611868]
[1761832739117,20.592,186.33,186.18,68.78384969]
[1761832739430,20.592,186.29,186.26,8.35238335]
[1761832739620,20.592,186.29,186.25,8.35238335]
[1761832739933,20.592,186.29,186.26,0.14216157]
[1761832740139,20.592,186.29,186.26,0.66]
[1761832740322,20.592,186.32,186.27,5.36855102]
[1761832740522,8.35238335,186.31,186.27,5.36855102]
[1761832740839,20.592,186.29,186.28,0.66]
[1761832741535,5.36666675,186.34,186.27,5.36855102]
[1761832741840,8.35238335,186.29,186.26,0.66]
[1761832742011,28.94438335,186.27,186.21,6.030273]
[1761832742348,8.35238335,186.25,186.21,6.030273]
[1761832742644,20.592,186.27,186.22,0.14216157]
[1761832742814,8.35238335,186.25,186.22,0.14216157]
[1761832743141,20.592,186.27,186.22,0.66]
[1761832743441,8.35238335,186.26,186.22,0.66]
[1761832743609,8.35238335,186.25,186.22,0.66]
[1761832743808,8.35238335,186.26,186.22,0.66]
[1761832744004,20.592,186.27,186.23,8.49454492]
[1761832744236,4.32373093,186.38,186.27,0.14216157]
[1761832744411,51.99999999,186.44,186.28,5.36826283]
[1761832744412,20.592,186.29,186.28,5.36826283]
[1761832744613,5.36437814,186.42,186.29,0.14216157]
[1761832744922,8.35238335,186.34,186.29,9.15454492]
[1761832745113,13.71676149,186.42,186.29,9.15454492]
[1761832745114,8.35238335,186.36,186.3,0.14216157]
[1761832745306,8.35238335,186.36,186.32,0.14216157]
[1761832745508,8.35238335,186.37,186.32,0.14216157]
[1761832745712,8.35238335,186.37,186.33,0.66]
[1761832745913,8.35238335,186.38,186.33,0.66]
[1761832746109,8.35238335,186.39,186.34,8.35238335]
[1761832746420,5.36437814,186.42,186.34,8.35238335]
[1761832746421,8.35238335,186.4,186.35,5.36624631]
[1761832746814,8.35238335,186.44,186.39,8.35238335]
[1761832747025,8.35238335,186.44,186.38,0.14216157]
[1761832747026,8.35238335,186.44,186.38,8.49454492]
[1761832747215,5.36237158,186.49,186.36,0.66]
[1761832747216,20.592,186.46,186.36,0.66]
[1761832747439,8.35238335,186.43,186.38,8.35238335]
[1761832747643,8.35238335,186.44,186.39,8.35238335]
[1761832747940,8.35238335,186.45,186.39,8.35238335]
[1761832748245,8.35238335,186.47,186.42,8.35238335]
[1761832748420,8.35238335,186.47,186.41,0.14216157]
[1761832748632,8.35238335,186.47,186.41,8.49454492]
[1761832748823,20.592,186.44,186.41,14.51880475]
[1761832749024,8.35238335,186.43,186.36,0.67]
[1761832749223,20.592,186.43,186.37,0.14216157]
[1761832749516,20.94733659,186.52,186.4,8.49454492]
[1761832749733,9.78882769,186.5,186.41,8.35238335]
[1761832749940,20.592,186.43,186.41,0.67]
[1761832750437,20.592,186.43,186.42,5.3642313]
[1761832750847,20.592,186.43,186.34,10.32548111]
[1761832750848,25.95599561,186.43,186.34,10.32548111]
[1761832751142,25.95599561,186.43,186.06,26.49699407]
[1761832751143,20.592,186.32,186.26,0.67]
[1761832751325,20.592,186.29,186.26,0.67]
[1761832751521,20.592,186.29,186.24,0.14216157]
[1761832751842,20.592,186.29,186.23,0.67]
[1761832752342,9.78882769,186.32,186.23,0.67]
[1761832752552,20.592,186.26,186.21,0.67]
[1761832752853,20.592,186.26,186.18,9.02238335]
[1761832753023,8.35238335,186.23,186.19,0.67]
[1761832753232,20.592,186.28,186.19,0.67]
[1761832753426,8.35238335,186.23,186.19,0.67]
[1761832753628,8.35238335,186.23,186.2,0.14216157]
[1761832753918,8.35238335,186.23,186.2,5.37056928]
[1761832754116,20.592,186.26,186.18,5.37092721]
[1761832754321,20.592,186.22,186.17,0.67]
[1761832754522,20.592,186.22,186.17,6.04139105]
[1761832754752,8.35238335,186.2,186.17,6.04139105]
[1761832754948,8.35238335,186.18,186.15,5.47172417]
[1761832755244,20.592,186.22,186.15,5.47194853]
[1761832755245,8.35238335,186.17,186.15,5.47194853]
[1761832755435,5.51395988,186.17,186.15,5.47194853]
[1761832755838,5.51395988,186.16,186.15,0.1]
[1761832756234,5.51395988,186.16,186.15,5.47201181]
[1761832756547,5.51395988,186.16,186.15,0.1]
[1761832757215,1.99999999,186.28,186.15,0.1]
[1761832757216,0.14216157,186.27,186.15,6.18190412]
[1761832757447,5.51395988,186.22,186.16,5.51395988]
[1761832757665,0.14216157,186.29,186.16,6.22395988]
[1761832757817,5.51395988,186.21,186.16,6.22395988]
[1761832758018,9.78882769,186.26,186.16,6.22395988]
[1761832758019,20.592,186.19,186.17,5.37143471]
[1761832758224,5.36919265,186.25,186.17,6.08143471]
[1761832758527,20.592,186.19,186.17,6.08143471]
[1761832758738,20.592,186.19,186.17,5.37143471]
[1761832759150,5.51395988,186.21,186.17,6.08143471]
[1761832759525,20.592,186.23,186.17,6.08143471]
[1761832759526,5.51395988,186.2,186.17,0.71]
[1761832759726,5.51395988,186.22,186.17,0.71]
[1761832759925,26.10595988,186.23,186.18,5.51395988]
[1761832760144,44.50831789,186.34,186.21,5.51395988]
[1761832760145,5.51395988,186.27,186.21,5.51395988]
[1761832760444,9.78882769,186.31,186.22,0.71]
[1761832760654,20.592,186.24,186.22,0.71]
[1761832760821,12.20648126,186.32,186.23,0.14216157]
[1761832760822,5.51395988,186.28,186.23,0.14216157]
[1761832761025,5.51395988,186.27,186.22,6.22395988]
[1761832761239,16.59556613,186.32,186.19,18.79800203]
[1761832761240,20.592,186.24,186.21,0.14216157]
[1761832761445,20.592,186.24,186.19,0.14216157]
[1761832761747,5.51395988,186.22,186.19,0.85216157]
[1761832761950,5.51395988,186.23,186.19,0.85216157]
[1761832762249,20.592,186.18,186.15,0.81]
[1761832762444,5.51395988,186.19,186.15,0.81]
[1761832762648,20.592,186.16,186.15,0.81]
[1761832762950,5.51395988,186.2,186.15,11.69597169]
[1761832763163,20.592,186.21,186.15,6.18201181]
[1761832763164,5.51395988,186.19,186.15,6.18201181]
[1761832763324,5.51395988,186.19,186.16,0.71]
[1761832763720,5.51395988,186.2,186.16,0.71]
[1761832763923,5.51395988,186.21,186.16,6.22395988]
[1761832764238,5.51395988,186.21,186.17,6.08143471]
[1761832764464,5.51395988,186.2,186.17,6.08143471]
[1761832765337,20.592,186.22,186.17,6.08143471]
[1761832765338,5.51395988,186.21,186.17,6.08143471]
[1761832765963,20.592,186.2,186.18,6.36612145]
[1761832766133,5.51395988,186.23,186.18,6.36612145]
[1761832766134,20.592,186.21,186.19,6.08085772]
[1761832766455,20.592,186.21,186.2,0.71]
[1761832767126,5.51395988,186.21,186.15,0.1]
[1761832767350,12.04347075,186.2,186.15,0.1]
[1761832767554,14.29811381,186.2,186.15,0.1]
[1761832767759,5.51395988,186.16,186.15,0.1]
[1761832767938,20.592,186.17,186.15,0.1]
[1761832768247,5.51395988,186.16,186.15,0.1]
[1761832768840,20.592,186.16,186.15,0.1]
[1761832769042,26.10595988,186.16,186.15,0.1]
[1761832770235,31.47768312,186.16,186.15,0.1]
[1761832770440,41.26651081,186.16,186.15,0.1]
[1761832771546,48.10497372,186.16,186.15,0.1]
[1761832772264,53.6189336,186.16,186.04,0.71]
[1761832772559,26.10595988,186.08,186.04,6.08495349]
[1761832772932,20.592,186.06,186.05,0.71]
[1761832773128,20.592,186.06,186.03,5.47536186]
[1761832773431,5.51395988,186.04,186.03,0.1]
[1761832774055,24.91205547,186.08,186.03,0.1]
[1761832774243,5.51395988,186.04,186.03,0.1]
[1761832774437,26.10595988,186.04,186.03,0.1]
[1761832775040,9.88307203,186.09,186.03,0.81]
[1761832775041,20.592,186.08,186.03,0.81]
[1761832775374,5.51395988,186.09,186.04,0.14216157]
[1761832775543,9.78882769,186.15,186.03,19.62416975]
[1761832775544,5.51395988,186.08,186.03,19.62416975]
[1761832775856,5.51395988,186.08,186.04,0.85216157]
[1761832776062,20.592,186.12,186.04,0.85216157]
[1761832776359,20.592,186.08,186.03,0.81]
[1761832776560,5.51395988,186.06,186.03,0.81]
[1761832776773,5.51395988,186.05,186.03,0.81]
[1761832776962,5.51395988,186.12,186.03,6.18529802]
[1761832776963,20.592,186.11,186.03,6.18529802]
[1761832777142,5.51395988,186.06,186.03,6.18529802]
[1761832777341,5.51395988,186.05,186.03,6.18529802]
[1761832777661,5.51395988,186.06,186.04,0.71]
[1761832777874,20.592,186.09,186.04,0.71]
[1761832778053,5.51395988,186.06,186.04,0.71]
[1761832778255,5.51395988,186.06,186.04,6.08504075]
[1761832778558,20.592,186.09,186.04,6.08504075]
[1761832778758,5.51395988,186.06,186.04,6.08504075]
[1761832778966,5.51395988,186.06,186.05,0.71]
[1761832779158,5.51395988,186.06,186.04,6.06504075]
[1761832779347,20.592,186.09,186.05,0.69]
[1761832779547,5.51395988,186.06,186.05,0.69]
[1761832779768,5.51395988,186.07,186.05,0.69]
[1761832779943,26.10595988,186.07,186.05,0.69]
[1761832780150,20.592,186.07,186.05,0.69]
[1761832780344,20.592,186.07,186.05,6.06471148]
[1761832780757,5.51395988,186.06,186.05,0.69]
[1761832780965,20.592,186.07,186.03,5.47542785]
[1761832781165,20.592,186.04,186.03,0.24216157]
[1761832781357,20.592,186.07,186.03,0.93216157]
[1761832781672,20.592,186.04,186.03,0.93216157]
[1761832782373,20.592,186.08,186.03,6.30760521]
[1761832782579,26.10595988,186.08,186.03,5.61760521]
[1761832782885,108.91395988,186.11,186.05,5.51395988]
[1761832783051,103.4,186.11,186.06,0.14216157]
[1761832783367,5.51395988,186.09,186.06,0.69]
[1761832783944,103.4,186.11,186.06,0.69]
[1761832784142,5.51395988,186.1,186.06,0.69]
[1761832784346,103.4,186.11,186.06,0.69]
[1761832784546,5.51395988,186.08,186.07,5.37432149]
[1761832785175,5.51395988,186.09,186.07,6.06432149]
[1761832785661,5.51395988,186.08,186.07,5.37432149]
[1761832786062,5.51395988,186.08,186.04,0.69]
[1761832786372,5.51395988,186.07,186.05,0.69]
[1761832786561,5.51395988,186.07,186.06,5.37461034]
[1761832786885,20.592,186.08,186.06,5.37461034]
[1761832787351,26.10595988,186.08,186.06,5.37461034]
[1761832787853,5.51395988,186.07,186.04,5.5173086]
[1761832788054,5.51395988,186.07,186.05,0.69]
[1761832788255,5.51395988,186.06,186.05,0.69]
[1761832788454,5.51395988,186.07,186.05,6.06489922]
[1761832788779,26.10595988,186.08,186.05,6.06489922]
[1761832788951,20.592,186.08,186.05,6.06489922]
[1761832789479,26.10595988,186.08,186.05,6.06489922]
[1761832790182,26.10595988,186.08,186.06,0.69]
[1761832790364,103.4,186.11,186.06,0.69]
[1761832790365,108.91395988,186.11,186.06,6.20395988]
[1761832790563,20.592,186.08,186.07,5.37432149]
[1761832790769,20.592,186.08,186.07,19.50012521]
[1761832790969,20.592,186.08,186.07,0.69]
[1761832791178,26.10595988,186.08,186.06,5.37455481]
[1761832791385,5.51395988,186.07,186.06,5.37455481]
[1761832792061,20.592,186.07,186.06,6.06455481]
[1761832792479,20.592,186.07,186.06,6.20671638]
[1761832792662,20.592,186.08,186.06,19.50108066]
[1761832792867,9.78882769,186.18,186.07,6.34612145]
[1761832793062,20.592,186.09,186.08,0.14216157]
[1761832793265,4.23929409,186.17,186.06,18.81108066]
[1761832793266,5.51395988,186.1,186.06,5.37455481]
[1761832793490,103.4,186.08,186.06,18.81108066]
[1761832793795,103.4,186.08,186.07,0.83216157]
[1761832794667,103.4,186.08,186.07,6.20648306]
[1761832795956,103.4,186.08,186.07,11.72044294]
[1761832796575,103.4,186.08,186.07,6.20648306]
[1761832799501,108.91395988,186.08,186.05,0.14216157]
[1761832799791,5.51395988,186.07,186.05,6.06489922]
[1761832799956,5.51395988,186.07,186.06,0.14216157]
[1761832800158,5.51395988,186.07,186.06,0.83216157]
[1761832800406,103.4,186.08,186.06,6.34612145]
[1761832800561,102.68,186.08,186.07,0.83216157]
[1761832800759,102.68,186.08,186.07,6.20648306]
[1761832800961,20.592,186.12,186.07,11.72044294]
[1761832801163,74.02936611,186.17,186.12,0.14216157]
[1761832801386,74.02936611,186.17,186.12,0.69]
[1761832801387,5.51395988,186.15,186.12,0.69]
[1761832801563,74.02936611,186.17,186.05,0.69]
[1761832801564,20.592,186.1,186.05,0.69]
[1761832801764,5.51395988,186.07,186.05,0.69]
[1761832802002,20.592,186.11,186.05,0.69]
[1761832802200,5.51395988,186.06,186.03,0.79]
[1761832802367,5.51395988,186.05,186.03,0.79]
[1761832802763,5.51395988,186.04,186.03,0.79]
[1761832803077,5.51395988,186.04,186.03,0.1]
[1761832803582,0.68,186.16,186.03,6.30395988]
[1761832803781,26.10595988,186.1,186.06,0.14216157]
[1761832804164,26.10595988,186.07,186.03,5.47541731]
[1761832804359,5.51395988,186.06,186.03,5.47541731]
[1761832804584,5.51395988,186.05,186.03,5.47541731]
[1761832804791,20.592,186.07,186.03,0.79]
[1761832805000,0.68,186.16,186.07,0.14216157]
[1761832805202,5.51395988,186.15,186.1,5.51395988]
[1761832805404,26.84387431,186.27,186.14,5.65612145]
[1761832805405,0.68,186.27,186.14,5.65612145]
[1761832805690,0.68,186.27,186.11,0.69]
[1761832805691,5.51395988,186.19,186.13,0.14216157]
[1761832805882,5.51395988,186.16,186.12,0.14216157]
[1761832806066,5.51395988,186.17,186.13,0.69]
[1761832806268,20.592,186.21,186.14,0.14216157]
[1761832806469,21.272,186.21,186.13,0.69]
[1761832806726,5.37085772,186.19,186.09,0.69]
[1761832807027,5.51395988,186.23,186.13,0.14216157]
[1761832807200,6.04912751,186.25,186.15,0.14216157]
[1761832807201,5.51395988,186.19,186.15,0.14216157]
[1761832807401,5.51395988,186.2,186.16,0.69]
[1761832807601,5.51395988,186.2,186.17,0.14216157]
[1761832807796,10.46882769,186.28,186.17,0.14216157]
[1761832807996,5.51395988,186.21,186.17,0.83216157]
[1761832808197,0.68,186.27,186.17,0.14216157]
[1761832808505,9.78882769,186.28,186.17,6.34612145]
[1761832808833,5.51395988,186.25,186.21,18.79598302]
[1761832809001,5.51395988,186.22,186.17,0.69]
[1761832809199,10.46882769,186.28,186.17,0.69]
[1761832809200,5.51395988,186.2,186.17,0.7]
[1761832809822,5.51395988,186.18,186.14,0.7]
[1761832810026,5.51395988,186.16,186.15,0.84216157]
[1761832810228,20.592,186.22,186.15,0.7]
[1761832810399,5.51395988,186.16,186.12,0.7]
[1761832810599,20.592,186.19,186.12,6.07270957]
[1761832810822,5.51395988,186.16,186.14,5.37230041]
[1761832811201,5.51395988,186.16,186.15,0.7]
[1761832811530,5.51395988,186.16,186.14,5.37230041]
[1761832811705,5.51395988,186.15,186.14,0.7]
[1761832812231,5.51395988,186.15,186.12,0.7]
[1761832812435,20.592,186.17,186.13,0.7]
[1761832812640,26.10595988,186.17,186.14,0.14216157]
[1761832812802,20.592,186.2,186.15,0.7]
[1761832813002,34.64653681,186.29,186.12,19.50507199]
[1761832813003,20.592,186.19,186.12,19.50507199]
[1761832813221,5.51395988,186.15,186.13,0.14216157]
[1761832813701,5.51395988,186.14,186.12,0.14216157]
[1761832813903,5.51395988,186.13,186.12,0.14216157]
[1761832814127,5.51395988,186.15,186.12,0.14216157]
[1761832814333,74.02936611,186.17,186.12,0.14216157]
[1761832814334,74.02936611,186.17,186.12,6.35612145]
[1761832814534,74.02936611,186.17,186.14,0.14216157]
[1761832814745,6.07947584,186.27,186.17,5.37143471]
[1761832814746,5.51395988,186.21,186.17,5.37143471]
[1761832815049,5.51395988,186.18,186.15,5.371943]
[1761832815212,5.51395988,186.19,186.16,0.14216157]
[1761832815415,94.62136611,186.2,186.16,9.19659646]
[1761832815416,74.02936611,186.2,186.16,9.19659646]
[1761832815754,74.02936611,186.2,186.18,0.14216157]
[1761832816127,74.02936611,186.2,186.19,0.82216157]
[1761832816324,74.02936611,186.2,186.19,9.19659646]
[1761832816640,8.37443489,186.27,186.2,9.93098926]
[1761832816815,74.02936611,186.29,186.21,13.88687732]
[1761832817155,0.7,186.28,186.21,18.93814459]
[1761832817326,8.37443489,186.27,186.21,27.99257948]
[1761832817512,8.37443489,186.25,186.21,0.14216157]
[1761832817713,20.592,186.26,186.21,0.14216157]
[1761832818050,8.37443489,186.24,186.21,0.14216157]
[1761832818945,8.37443489,186.23,186.21,5.37028086]
[1761832819130,8.37443489,186.23,186.2,0.14216157]
[1761832819437,74.72936611,186.25,186.2,0.14216157]
[1761832819608,74.02936611,186.25,186.2,0.14216157]
[1761832819816,74.02936611,186.25,186.22,0.14216157]
[1761832820018,74.02936611,186.25,186.22,8.51659646]
[1761832820241,74.02936611,186.25,186.22,0.82216157]
[1761832820443,74.02936611,186.25,186.22,0.14216157]
[1761832820646,28.96643489,186.25,186.22,0.14216157]
[1761832820810,20.592,186.25,186.22,0.14216157]
[1761832821014,28.96643489,186.25,186.22,0.14216157]
[1761832821245,20.592,186.25,186.24,0.14216157]
[1761832821541,74.02936611,186.33,186.24,9.19659646]
[1761832821751,0.2,186.34,186.26,0.14216157]
[1761832822045,0.2,186.34,186.29,0.14216157]
[1761832822349,0.2,186.34,186.29,8.51659646]
[1761832822654,0.2,186.34,186.33,0.14216157]
[1761832822853,0.2,186.34,186.33,15.97781156]
[1761832822854,1e-08,186.34,186.33,15.97781156]
[1761832823450,0.2,186.42,186.34,9.93098926]
[1761832823765,4.41096663,186.44,186.42,9.93098926]
[1761832824049,4.41096663,186.44,186.43,0.14216157]
[1761832824918,20.592,186.41,186.38,8.37443489]
[1761832825112,4.41096663,186.44,186.39,0.68]
[1761832825333,4.41096663,186.44,186.43,0.14216157]
[1761832825533,4.41096663,186.44,186.43,8.51659646]
[1761832825858,0.2,186.48,186.43,9.19659646]
[1761832826155,8.37443489,186.59,186.49,0.14216157]
[1761832826355,0.7,186.59,186.49,0.14216157]
[1761832826656,20.592,186.47,186.45,0.14216157]
[1761832826837,8.37443489,186.46,186.45,0.14216157]
[1761832827035,20.592,186.46,186.45,0.14216157]
[1761832827234,20.592,186.49,186.45,0.14216157]
[1761832827650,28.96643489,186.49,186.45,0.14216157]
[1761832828151,20.592,186.46,186.45,0.14216157]
[1761832828352,8.37443489,186.47,186.45,0.14216157]
[1761832828547,8.37443489,186.47,186.37,0.68]